Cogmind - Beta 17.1 @@@ ROGUE MODE // 2026.08.30 @ 12:57:19 Player: UnderDoug Result: Destroyed by 90-TT4(R) with Subdweller Machine Gun Performance ------------- Evolutions (0) 0 Regions Visited (3) 600 Robots Destroyed (8) 40 Value Destroyed (140) 140 Prototype IDs (4) 80 Alien Tech Used (0) 0 Bonus (0) 0 TOTAL SCORE: 860 Bonus ------- None Cogmind --------- Core Integrity 0/250 Matter 300/300 Energy 84/100 System Corruption 0% Temperature Warning (318) Movement Flying (37) Location -10/Subcaves Parts ------- > --- POWER (1) -------- (None) > --- PROPULSION (2) --- Flight Unit Flight Unit > --- UTILITY (2) ------ (None) > --- WEAPON (2) ------- Subdweller Beam Cannon > --- INVENTORY (5) ---- Light Ion Engine Light Nuclear Core Makeshift Kinetic Plating Subdweller Laser Pulse Rifle Peak State ------------ > --- POWER ------------ Light Nuclear Core > --- PROPULSION ------- Flight Unit Flight Unit > --- UTILITY ---------- Improved Heat Sink Signal Interpreter > --- WEAPON ----------- Pulse Rifle > --- INVENTORY -------- Light Ion Engine Light Ion Engine Flight Unit Flight Unit Light Assault Rifle [Rating: 12] Favorites ----------- Power Light Ion Engine Engine Light Ion Engine Power Core Light Nuclear Core Propulsion Flight Unit Treads Light Treads Flight Unit Flight Unit Utility Scrap Shield Device Improved Heat Sink Storage Small Storage Unit Processor Signal Interpreter Protection Scrap Shield Weapon Light Assault Rifle Energy Gun Pulse Rifle Energy Cannon Subdweller Beam Cannon Ballistic Gun Light Assault Rifle Build | -11 -10 -10 -10 ------- Run | Yrd Mat Min Sub Slots Evolved . | . . . . Power . | . . . . Propulsion . | . . . . Utility . | . . . . Weapon . | . . . . Parts Attached 25 | 6 4 10 5 Power 3 | 1 . 2 . Engine 2 | 1 . 1 . Core 1 | . . 1 . Reactor . | . . . . Propulsion 9 | 2 2 3 2 Treads 2 | 2 . . . Leg . | . . . . Wheel . | . . . . Hover . | . . . . Flight 7 | . 2 3 2 Utility 4 | 1 1 1 1 Device 1 | . . 1 . Storage 1 | 1 . . . Processor 1 | . 1 . . Hackware . | . . . . Protection 1 | . . . 1 Artifact . | . . . . Weapon 9 | 2 1 4 2 Energy Gun 2 | . . 1 1 Energy Cannon 1 | . . . 1 Ballistic Gun 6 | 2 1 3 . Ballistic Cannon . | . . . . Launcher . | . . . . Special Weapon . | . . . . Impact Weapon . | . . . . Slashing Weapon . | . . . . Piercing Weapon . | . . . . Special Melee Weapon . | . . . . Unidentified Prototypes . | . . . . Parts Lost 5 | . . . 5 Power 1 | . . . 1 Propulsion 2 | . . . 2 Utility 1 | . . . 1 Weapon 1 | . . . 1 Highest Loss Streak 3 | . . . 3 To Critical Strikes . | . . . . Average Backups 4 | 4 5 5 4 Power 1 | . 1 2 2 Propulsion . | 2 2 2 . Utility . | . . . . Weapon 1 | 1 1 1 1 Tool/Special . | . . . . Unused Backups 8 | . 5 1 2 Power 1 | . . . 1 Propulsion 5 | . 4 1 . Utility 1 | . . . 1 Weapon 1 | . 1 . . Tool/Special . | . . . . Average Slot Usage (%) 80 | . 73 80 82 Engine 11 | . 14 4 13 Core 2 | . . 9 . Flight 26 | . 15 28 27 Device 2 | . . 8 . Processor 4 | . 6 14 . Protection 9 | . . . 12 Energy Cannon 7 | . . . 10 Ballistic Gun 14 | . 18 13 13 Peak Build Rating 12 | 6 6 12 11 Average Rating 9 | 4 5 8 9 On Entrance 4 | . 6 5 8 Avg Prop Armor Cover (%) . | . . . . Naked Turns . | . . . . Heaviest Build 30 | 11 11 8 30 Greatest Support 40 | 40 40 8 8 Greatest Overweight (x) 3 | 1 2 . 3 Average Overweight (x) . | . . . 2 Largest Inventory Capacity 8 | 8 8 5 5 Average Capacity 5 | 6 6 5 5 Most Carried 8 | 6 8 5 5 Average Carried 4 | 4 5 5 4 Final Capacity 8 | 8 5 5 5 Final Carried 6 | 6 5 5 5 Class Distribution -------------------- 80% | Scavenger-Mutant 19% | Mutant Dominant Class ---------------- Mutant | -10/Materials Scavenger-Mutant | -10/Mines Scavenger-Mutant | -10/Subcaves Resources | -11 -10 -10 -10 ----------- Run | Yrd Mat Min Sub Matter Collected 515 | 203 67 172 73 Remotely . | . . . . Salvage Created 167 | . 27 72 68 Parts 15 | . 4 7 4 Haulers Intercepted . | . . . . Recyclers Shooed . | . . . . Parts Field Recycled . | . . . . Retrieved Matter . | . . . . Parts Self-Destructed . | . . . . Prevented . | . . . . Parts Restored . | . . . . Kills | -11 -10 -10 -10 ------- Run | Yrd Mat Min Sub Combat Hostiles Destroyed 8 | . 2 4 2 Guns 8 | . 2 4 2 Classes Destroyed 2 | . 1 . 1 Swarmer 6 | . 2 4 . Subdweller 2 | . . . 2 Best Kill Streak 4 | . 2 4 1 Combat Bots Only 4 | . 2 4 1 Max Kills in Single Turn 1 | . 1 1 1 Gunslinging . | . . . . Exploded . | . . . . Melee . | . . . . Uniques/NPCs Destroyed . | . . . . Combat | -11 -10 -10 -10 -------- Run | Yrd Mat Min Sub Hostile Shots Fired 82 | . 20 29 33 Missed 31 | . 7 11 13 Hits 51 | . 13 18 20 Projectile 51 | . 13 18 20 Critical Strikes 3 | . . 1 2 Damage Taken 928 | . 112 169 647 Core 263 | . 17 29 217 Absorbed by Shields . | . . . . Core Remaining (%) 100 | 100 . . . Volleys Fired 57 | . 6 14 37 Largest 2 | . 2 2 2 Hottest 100 | . 40 63 100 Shots Fired 83 | . 11 25 47 Gun 71 | . 11 25 35 Cannon 12 | . . . 12 Launcher . | . . . . Special . | . . . . Kinetic 69 | . 11 23 35 Thermal 14 | . . 2 12 Explosive . | . . . . Electromagnetic . | . . . . Robot Hit Streak 8 | . 2 2 8 Robot Miss Streak 4 | . 3 4 1 Penetration Max . | . . . . Secondary Targets 1 | . . 1 . Max Gunslinging Chain 1 | . . 1 . Shots Hit Robots 46 | . 5 9 32 Core Hits 14 | . 2 5 7 Critical Kills . | . . . . Critical Parts Destroyed . | . . . . Critical Strikes 1 | . . . 1 Destroy 1 | . . . 1 Melee Attacks . | . . . . Impact . | . . . . Slashing . | . . . . Piercing . | . . . . Sneak Attacks . | . . . . Combat Hostiles . | . . . . Follow-up Attacks . | . . . . Damage Inflicted 458 | . 53 69 336 Guns 322 | . 52 69 201 Cannons 135 | . . . 135 Explosions . | . . . . Melee . | . . . . Ramming 1 | . 1 . . Kinetic 322 | . 52 69 201 Thermal 135 | . . . 135 Explosive . | . . . . Electromagnetic . | . . . . Impact . | . . . . Slashing . | . . . . Piercing . | . . . . Highest Corruption . | . . . . Average Corruption . | . . . . Corruption Purged . | . . . . Corruption Blocked . | . . . . Overload Shots . | . . . . Overflow Damage . | . . . . Projectiles . | . . . . Explosions . | . . . . Melee . | . . . . Knockbacks . | . . . . Impact . | . . . . Kinetic . | . . . . Secondary . | . . . . Self-Inflicted Damage . | . . . . Shots . | . . . . Rammed 1 | . 1 . . Targets Rammed 1 | . 1 . . Kicked . | . . . . Crushed . | . . . . Highest Temperature 321 | . 6 96 321 Average Temperature 62 | . 6 52 71 Received Heat Transfer 442 | . 9 51 382 Siege Activations . | . . . . Martial Activations . | . . . . Shielding Activations . | . . . . Robots Disrupted . | . . . . Combat Hostiles . | . . . . Robots Corrupted . | . . . . Combat Hostiles . | . . . . Parts Fried . | . . . . Impact Corruptions . | . . . . Robots Melted . | . . . . Combat Hostiles . | . . . . Parts Melted . | . . . . Heat Transferred 185 | . . . 185 Parts Sabotaged . | . . . . Parts Stolen . | . . . . Parts Stripped . | . . . . Power Chain Reactions . | . . . . Alert | -11 -10 -10 -10 ------- Run | Yrd Mat Min Sub Maximum Alert Level . | . . . . Low Security (%) 100 | 100 100 100 . Level 1 . | . . . . Level 2 . | . . . . Level 3 . | . . . . Level 4 . | . . . . Level 5 . | . . . . High Security . | . . . . Max Security . | . . . . Peak Influence 84 | . 40 84 . Initial . | . . . . Average 13 | . 16 15 . Influence Increases 250 | . 75 175 . Destroy 0b10 Robot/C 120 | . 40 80 . Destroy Leader 30 | . 10 20 . Successful Hack 10 | . 10 . . Partial Spotted 15 | . 15 . . Lose Combat Pursuer 75 | . . 75 . Influence Decreases 250 | . 75 99 76 Entered New Map 40 | . . . 40 Time Decay 204 | . 75 99 30 Lost Part 6 | . . . 6 Squads Dispatched 3 | . 2 1 . Investigation 2 | . 1 1 . Extermination . | . . . . Reinforcement 1 | . 1 . . Assault . | . . . . Garrison . | . . . . Intercept . | . . . . Searches Triggered . | . . . . Construction Impeded . | . . . . Haulers Reinforced . | . . . . Active Scanning Responses . | . . . . Cargo Convoy Interrupts . | . . . . Stealth | -11 -10 -10 -10 --------- Run | Yrd Mat Min Sub Distress Signals 1 | . 1 . . Communications Jammed . | . . . . Distress Signals . | . . . . Times Spotted 26 | . 11 11 4 Peak Tracking Total 5 | . 5 3 2 Tactical Retreats 2 | . . 2 . Traps | -11 -10 -10 -10 ------- Run | Yrd Mat Min Sub Traps Triggered 4 | . . . 4 Indirectly . | . . . . Trap Hack Attempts . | . . . . Triggered . | . . . . Disarmed . | . . . . Reprogrammed 3 | . 3 . . Reused . | . . . . Traps Extracted . | . . . . Installed . | . . . . Triggered . | . . . . Machines | -11 -10 -10 -10 ---------- Run | Yrd Mat Min Sub Machines Disabled . | . . . . Max in Single Turn . | . . . . Machines Repaired . | . . . . Machines Dismantled . | . . . . Machines Sabotaged . | . . . . Overloaded Fab Kills . | . . . . Hacking | -11 -10 -10 -10 --------- Run | Yrd Mat Min Sub Machines Accessed 4 | . 3 1 . Terminals 3 | . 3 . . Fabricators . | . . . . Repair Stations . | . . . . Recycling Units . | . . . . Scanalyzers . | . . . . Garrison Access . | . . . . Total Hacks 11 | . 10 1 . Successful 5 | . 4 1 . Failed 6 | . 6 . . Catastrophic 1 | . 1 . . Database Lockouts . | . . . . Manual . | . . . . Terminals 10 | . 10 . . Fabricators . | . . . . Repair Stations . | . . . . Recycling Units . | . . . . Scanalyzers . | . . . . Garrison Access . | . . . . Terminal Hacks 5 | . 4 1 . Prototype ID Bank 2 | . 2 . . Open Door 1 | . . 1 . Locate Traps 1 | . 1 . . Reprogram Traps 1 | . 1 . . Fabricator Hacks . | . . . . Repair Station Hacks . | . . . . Recycling Unit Hacks . | . . . . Scanalyzer . | . . . . Garrison Access Hacks . | . . . . Unauthorized Hacks . | . . . . Terminals . | . . . . Fabricators . | . . . . Repair Stations . | . . . . Recycling Units . | . . . . Scanalyzers . | . . . . Garrison Access . | . . . . Data Cores Recovered . | . . . . Used . | . . . . Hacking Detections 3 | . 3 . . Full Trace Events 1 | . 1 . . Feedback Events . | . . . . Feedback Blocked . | . . . . Robot Schematics Acquired . | . . . . Robots Built . | . . . . Authchips . | . . . . Time . | . . . . Total Robot Build Rating . | . . . . Part Schematics Acquired . | . . . . Parts Built . | . . . . Authchips . | . . . . Time . | . . . . Total Part Build Rating . | . . . . Part Studies Acquired . | . . . . Parts Repaired . | . . . . Time . | . . . . Parts Recycled . | . . . . Recycled Matter . | . . . . Retrieved Matter . | . . . . Retrieved Components . | . . . . Parts Scanalyzed . | . . . . Part Schematics Acquired . | . . . . Parts Damaged . | . . . . Bothacking | -11 -10 -10 -10 ------------ Run | Yrd Mat Min Sub Used RIF Installer . | . . . . Robots Hacked . | . . . . Non-combat . | . . . . Combat . | . . . . Robot Hacks Applied . | . . . . Relay Couplers Released . | . . . . Fabnet Peak Effective % . | . . . . Robots Rewired . | . . . . Allies Hacked . | . . . . Hacks Repelled . | . . . . Allies | -11 -10 -10 -10 -------- Run | Yrd Mat Min Sub Total Allies . | . . . . Largest Group . | . . . . Highest-Rated Group . | . . . . Highest-Rated Ally . | . . . . Total Orders . | . . . . Ally Attacks . | . . . . Total Damage . | . . . . Kills . | . . . . Allies Corrupted . | . . . . Allies Melted . | . . . . Intel | -11 -10 -10 -10 ------- Run | Yrd Mat Min Sub Active Infowar (turns) . | . . . . Robot Analysis Total . | . . . . Derelict Logs Recovered 3 | . . 2 1 Drone Launches . | . . . . Drone Recoveries . | . . . . Exploration | -11 -10 -10 -10 ------------- Run | Yrd Mat Min Sub Turns Passed 2590 | 87 189 538 1776 Spaces Moved 1945 | 55 309 811 770 Core 20 | 18 2 . . Treads 66 | 37 29 . . Legs . | . . . . Wheels . | . . . . Hover . | . . . . Flight 1859 | . 278 811 770 Fastest Speed 37 | 50 37 37 37 Average Speed 112 | 127 49 37 215 Slowest Speed 277 | 160 160 37 277 Overloaded Moves . | . . . . Propulsion Burnouts . | . . . . Robots Hopped 6 | . . 6 . Potential Cave-ins . | . . . . Cave-ins Triggered . | . . . . Exploration Rate (%) 49 | 4 54 91 48 Regions Visited 3 Branch Regions 2 Pre-discovered Areas 2 | . . 1 1 Known Exits Taken 2 | . 1 1 . Unknown Exits Taken 1 | 1 . . . Scrap Searched 1 | . . 1 . Spaces Dug 1 | . . . 1 Terrain Destroyed 2 | . . . 2 Melee . | . . . . Projectile 2 | . . . 2 AOE . | . . . . Terrain Rammed . | . . . . Walls Destroyed . | . . . . Machines Disabled . | . . . . Actions | -11 -10 -10 -10 --------- Run | Yrd Mat Min Sub Total 2283 | 72 339 1023 849 Wait 216 | . 1 185 30 Move 1930 | 54 308 798 770 Hop 6 | . . 6 . Pick Up 26 | 12 8 2 4 Fast Attach 5 | . 1 4 . Attach 13 | 6 2 . 5 Detach 1 | . . . 1 Swap 7 | . 1 6 . Drop 21 | . 11 8 2 Fire 57 | . 6 14 37 Melee . | . . . . Ram 1 | . 1 . . Kick . | . . . . Crush . | . . . . Escape Stasis . | . . . . Rewire . | . . . . Trap . | . . . . Miscellaneous . | . . . . Route ------- -11/Scrapyard -10/Materials (discovered 3 exits: *Mat / *Min x2) -10/Mines (discovered 3 exits: *Mat x2 / *Sub) -10/Subcaves History --------- Turn | Location | Event 11 | -11/Scrapyard | Discovered new exit (range 16) 88 | -11/Scrapyard | Entered Materials 108 | -10/Materials | Discovered new exit (range 5) 193 | -10/Materials | Identified exit to Mines 211 | -10/Materials | Discovered exit to Mines (range 15) 241 | -10/Materials | Discovered new exit (range 11) 277 | -10/Materials | Entered Mines 278 | -10/Mines | Learned location of Storage (-9) 300 | -10/Mines | Discovered new exit (range 14) 305 | -10/Mines | Learned Materials terminal intel 315 | -10/Mines | Build established: Mutant 358 | -10/Mines | Met a Derelict bent on vengeance 430 | -10/Mines | Met a Derelict shopkeep closing up shop 747 | -10/Mines | Discovered new exit (range 10) 751 | -10/Mines | Learned Materials stockpile data 787 | -10/Mines | Build established: Scavenger-Mutant 807 | -10/Mines | Identified exit to Materials 814 | -10/Mines | Discovered new exit (range 4) 815 | -10/Mines | Identified exit to Subcaves 815 | -10/Mines | Entered Subcaves 832 | -10/Subcaves | Learned Materials stockpile data 883 | -10/Subcaves | Ambushed by angry Subdweller bent on revenge 913 | -10/Subcaves | Core integrity fell below 50% 1010 | -10/Subcaves | Curiously followed by a Cobbler waking with a query about "LVR3C" 1484 | -10/Subcaves | Shifting Twisted Machinery released Shrapnel Trap 1496 | -10/Subcaves | Shifting Twisted Machinery released Lgt. Humpback 1793 | -10/Subcaves | Learned location of Zion (-7) 1793 | -10/Subcaves | Met a Zionite searching for "candidates" 2578 | -10/Subcaves | Core integrity fell below 20% 2591 | -10/Subcaves | Destroyed by 90-TT4(R) with Subdweller Machine Gun Last Messages --------------- World map updated: -7/Zion. Triggered Piercing Trap. Spikes shoot up from the floor. Triggered Piercing Trap. Spikes shoot up from the floor. Triggered Piercing Trap. Spikes shoot up from the floor. Critical hit (Impale). Triggered Shrapnel Trap. An expanding cloud of shrapnel blasts out in all directions. Acquired 5 matter. LR-LC5(u) deconstructs Twisted Machinery. LR-LC5(u) builds Twisted Machinery. 0D-HDE(O) collects matter. 90-TT4(R) suffers critical hit (Destroy). Lgt. Assault Rifle destroyed. Scrap Shield destroyed. Critical hit (Meltdown: +280). Lgt. Ion Engine destroyed. Map ----- +----------------------------------------------------+ | ?????????????????????????????????????????????????? | | ?????????????????????????????????????????????????? | | ?????????????????????????????????????????????????? | | ?????????????????????????????????????????????????? | | ?????????????????????????????????????????????????? | | ?????????????????????????????????????????????????? | | ?????????????????????????????????????????????????? | | ?????????????????????????????????????????????????? | | ?????????????????????????????????????????????????? | | ?????????????????????????????????????????????????? | | ?????????????????????? ?????????????????????????? | | ?????????????????????#= ?????????????????????????? | | ????????????????????## #????????????????????????? | | ???????????????????## ##??????????????????????? | | ?????????????????### #??????????????????????? | | ?????????????????? #??????????????????????? | | ??????????????????? #??????????????????????? | | ??????????????????? #??????????????????????? | | ???????????????????? #??????????????????????? | | ????????????????????? R % ??????????????????????? | | ?????????????????????# ??????????????????????? | | ?????????????????????# R ??????????????????????? | | ????????????????????## #??????????????????????? | | ???????????????????## ;#??????????????????????? | | ???????????????????# ;####???????????????????? | | ???????????????????# @ %#???????????????????? | | ???????????????????## #???????????????????? | | ????????????????????# #???????????????????? | | ????????????????????## ##??????????????????? | | ??????????????????### ;### ##?????????????????? | | ??????????????????# ## #?????????????????? | | ??????????????????# #?????????????????? | | ??????????????????# #?????????????????? | | ???????#####??????# ##?????????????????? | | ??????## #??????# #??????????????????? | | #???### #???????## ### #??????????????????? | | ##### ##???????# #?## ####???????????????? | | # ## ##??????# #??# ##??????????????? | | "#### ##?###?## #??# #??????????????? | | # " #??## ### #?## #??# #??????????????? | | ###"##???# #?# #?## # ##????#######??? | | ?# ""##### "#### ##?# # ##???# " #??? | | ?## # #"# " ## ##?# ##??# ""#???? | | ??# " # ### ##### ""###?? | | ??## # ""#" " ## ### #?? | | ??####" ##" " ## & #?? | | ??# " "" "" " ### & #?? | | ?# # # """"" !#### ### # ### | | ?## ##### """" "##?# ### ## | | ??# ?????# [ """### #### ### | +----------------------------------------------------+ Best States ------------- Heat Dissipation 39 Energy Generation 14 Energy Capacity 160 Matter Stores 300 Matter Capacity 300 Sight Range 16 Terrain Scan Density 10 Armor Coverage 800 Evasion (%) 62 Recoil Reduction 2 Item Schematics ----------------- None Robot Schematics ------------------ None Fabricated ------------ Nothing Repaired ---------- Nothing Studied --------- None Alien Tech Used ----------------- None Achievements -------------- None Challenges ------------ None Game ------ Seed DecoyThrusterMatrix Manual? 0 Play Time 00:24:23 Cumulative 3.4 hours Start 2026.08.29 @ 16:55:11 End 2026.08.30 @ 12:57:19 Sessions 2 Manual Loads 0 Difficulty Rogue Special Mode None Game No. 6 Rogue 6 Adventurer 0 Explorer 0 Win Type - Total 0 Types 0/0/0/0/0/0/0/0/0/0 Lore% 10 Gallery% 6 Achievement% 8 Wizard Run 0 Options --------- Layout 1 ASCII 0 Keyboard 0 Movement Numpad Keybinds 0 Fullscreen 2 Font 24/X11 Map View 50x35 Zoom Use 0% Tactical HUD 0 Map Filters NONE Filters NONE Steam 1 RUN: 7559c0f4-df25-45ab-94df-c03a8b13fd65